bitfinex/quotes_SOLUSD_20241205
["timestamp","ask_amount","ask_price","bid_price","bid_amount"]
[1733383617086,1.06164563,234.98,234.86,8.38179258]
[1733383617680,1.06164563,234.98,234.85,8.38179258]
[1733383618092,1.06164563,234.98,234.86,8.38179258]
[1733383618481,1.06164563,234.98,234.83,23.776884]
[1733383618683,1.06164563,234.98,234.86,8.38179258]
[1733383618894,1.06164563,234.98,234.84,0.84922935]
[1733383619102,1.06164563,234.98,234.86,8.38179258]
[1733383619580,1.06164563,234.98,234.84,0.84922935]
[1733383619581,1.06164563,234.98,234.87,8.38179258]
[1733383619788,1.06164563,234.98,234.89,8.38179258]
[1733383620505,1.06164563,234.98,234.9,8.38179258]
[1733383620709,6.5476,234.99,234.91,8.38179258]
[1733383621002,1.8230135,235.0,234.91,8.38179258]
[1733383622080,1.8230135,235.0,234.92,8.38179258]
[1733383623279,0.4964135,235.0,234.94,8.38179258]
[1733383623478,0.4964135,235.0,234.95,8.38179258]
[1733383623896,0.4964135,235.0,234.92,43.776884]
[1733383624103,0.4964135,235.0,234.94,8.38179258]
[1733383624286,0.4964135,235.0,234.95,0.84887705]
[1733383624881,0.4964135,235.0,234.95,9.23066963]
[1733383625083,0.4964135,235.0,234.95,0.84887705]
[1733383625581,0.4964135,235.0,234.95,9.23066963]
[1733383626521,0.4964135,235.0,234.96,8.38179258]
[1733383626675,0.4964135,235.0,234.95,0.84883266]
[1733383626876,0.4964135,235.0,234.95,9.23062524]
[1733383627696,0.4964135,235.0,234.92,44.62573087]
[1733383627996,0.4964135,235.0,234.92,53.00752345]
[1733383629007,0.4964135,235.0,234.93,8.38179258]
[1733383629182,0.4964135,235.0,234.94,9.23072038]
[1733383632001,0.4964135,235.0,234.94,0.8489278]
[1733383634107,0.4964135,235.0,234.94,9.23072038]
[1733383635207,0.4964135,235.0,234.95,32.15867658]
[1733383635516,0.4964135,235.0,234.95,33.00749657]
[1733383636410,0.4964135,235.0,234.96,8.38179258]
[1733383636607,0.4964135,235.0,234.97,0.84876669]
[1733383636989,0.4964135,235.0,234.98,23.776884]
[1733383638997,0.4964135,235.0,234.97,0.84876669]
[1733383639197,0.4964135,235.0,234.96,23.776884]
[1733383639488,0.4964135,235.0,234.96,24.62570337]
[1733383639893,0.4964135,235.0,234.92,0.84882475]
[1733383640107,0.4964135,235.0,234.93,32.15867658]
[1733383640305,0.4964135,235.0,234.95,23.776884]
[1733383642313,0.08162176,234.96,234.95,32.15867658]
[1733383643505,0.08162176,234.96,234.95,23.776884]
[1733383643891,0.08162176,234.96,234.95,32.15867658]
[1733383647810,0.08162176,234.96,234.95,33.00740445]
[1733383648624,0.08162176,234.96,234.95,24.62561187]
[1733383648785,0.08162176,234.96,234.95,33.00740445]
[1733383651118,0.08162176,234.96,234.95,72.9353446]
[1733383651709,0.08162176,234.96,234.95,45.69467428]
[1733383657814,0.08162176,234.96,234.95,24.62561187]
[1733383657998,0.08162176,234.96,234.95,32.15867658]
[1733383658198,0.08162176,234.96,234.95,33.00744642]
[1733383661325,0.4964135,235.0,234.96,23.776884]
[1733383661533,0.4964135,235.0,234.99,8.38179258]
[1733383662218,0.58338689,235.0,234.99,8.38179258]
[1733383666607,0.58338689,235.0,234.98,23.776884]
[1733383666805,0.58338689,235.0,234.99,9.23053839]
[1733383667832,0.58338689,235.0,234.99,33.00742239]
[1733383668210,0.58338689,235.0,234.99,39.40819222]
[1733383669127,0.58338689,235.0,234.99,33.00742239]
[1733383669629,0.58338689,235.0,234.99,39.40819222]
[1733383670640,0.58338689,235.0,234.99,31.02639964]
[1733383670931,0.58338689,235.0,234.99,9.23053839]
[1733383671810,0.58338689,235.0,234.99,15.61474767]
[1733383672324,0.58338689,235.0,234.99,39.39163167]
[1733383678340,0.07763072,235.02,235.0,5.93629428]
[1733383678531,0.07763072,235.02,235.01,33.00698917]
[1733383678732,0.07763072,235.02,235.01,46.07563652]
[1733383680237,0.08438233,235.03,235.01,46.07563652]
[1733383680417,0.08438233,235.03,235.02,45.22732393]
[1733383680617,0.08438233,235.03,235.02,46.07564182]
[1733383681344,1.3266,235.16,235.02,46.07564182]
[1733383681525,1.3266,235.16,235.1,8.38179258]
[1733383682118,0.07880438,235.11,235.1,8.38179258]
[1733383683846,0.07880438,235.11,235.07,0.84832685]
[1733383684039,0.07880438,235.11,235.05,0.84835917]
[1733383684224,0.07880438,235.11,235.03,0.84850123]
[1733383684417,0.07880438,235.11,235.03,9.23029381]
[1733383684947,0.07880438,235.11,235.03,7.62463181]
[1733383685122,0.07880438,235.11,235.04,8.38179258]
[1733383685530,0.07880438,235.11,235.05,8.38179258]
[1733383686418,0.07880438,235.11,235.07,8.38179258]
[1733383686614,0.07880438,235.11,235.08,8.38179258]
[1733383688625,0.07880438,235.11,235.06,5.93629428]
[1733383688836,0.07880438,235.11,235.06,14.31808686]
[1733383689037,0.07880438,235.11,235.02,8.38179258]
[1733383689541,0.07880438,235.11,235.03,8.38179258]
[1733383689749,1.1395128,235.11,234.93,1.6107]
[1733383689948,1.1395128,235.11,234.99,8.38179258]
[1733383690853,1.1395128,235.11,234.94,5.93629428]
[1733383691063,1.1395128,235.11,234.98,8.38179258]
[1733383691344,1.1395128,235.11,234.94,23.776884]
[1733383691551,1.1395128,235.11,234.98,8.38179258]
[1733383692143,1.1395128,235.11,234.99,8.38179258]
[1733383692652,1.1395128,235.11,234.97,20.0]
[1733383692820,1.1395128,235.11,234.97,28.38179258]
[1733383693833,1.3266,235.1,234.93,1.6107]
[1733383694026,1.06111857,235.09,234.94,8.38179258]
[1733383694421,6.4616,235.07,234.87,1.635]
[1733383694624,23.776884,235.04,234.88,8.38179258]
[1733383694830,1.06140407,235.03,234.88,8.38179258]
[1733383695145,1.06140407,235.03,234.8,8.1494]
[1733383695329,23.776884,235.02,234.86,8.38179258]
[1733383695529,6.5761,235.0,234.87,8.38179258]
[1733383695847,1.06148803,234.99,234.86,8.38179258]
[1733383696444,1.3266,234.98,234.85,8.38179258]
[1733383696653,1.06157864,234.97,234.85,8.38179258]
[1733383696848,1.06157864,234.97,234.84,8.38179258]
[1733383698848,1.06157864,234.97,234.85,8.38179258]
[1733383699436,1.06157864,234.97,234.81,23.776884]
[1733383699637,1.06157864,234.97,234.84,8.38179258]
[1733383700643,1.06157864,234.97,234.83,8.38179258]
[1733383701155,1.06157864,234.97,234.82,8.38179258]
[1733383701559,1.06157864,234.97,234.85,8.38179258]
[1733383702045,1.3266,234.98,234.87,8.38179258]
[1733383702271,0.08514565,234.88,234.87,8.38179258]
[1733383702842,0.08514565,234.88,234.87,32.15867658]
[1733383703963,0.08514565,234.88,234.84,8.38179258]
[1733383704267,0.08514565,234.88,234.85,23.776884]
[1733383704639,0.08514565,234.88,234.79,23.776884]
[1733383704839,0.08514565,234.88,234.86,8.38179258]
[1733383706164,0.06010714,234.89,234.86,8.38179258]
[1733383706763,0.06010714,234.89,234.79,23.776884]
[1733383706963,0.06010714,234.89,234.84,8.38179258]
[1733383707563,0.06010714,234.89,234.88,8.38179258]
[1733383708657,0.06010714,234.89,234.81,23.776884]
[1733383708844,0.06010714,234.89,234.88,8.38179258]
[1733383709238,0.06010714,234.89,234.88,32.15867658]
[1733383709756,0.06010714,234.89,234.87,23.776884]
[1733383709967,0.06010714,234.89,234.88,32.15867658]
[1733383710543,0.06010714,234.89,234.87,23.776884]
[1733383710769,0.06010714,234.89,234.88,32.15867658]
[1733383711143,0.06010714,234.89,234.88,8.38179258]
[1733383712138,0.06010714,234.89,234.83,23.776884]
[1733383712461,0.06010714,234.89,234.86,8.38179258]
[1733383712647,0.06010714,234.89,234.8,1.6519]
[1733383712966,0.06010714,234.89,234.87,8.38179258]
[1733383713468,0.06010714,234.89,234.88,8.38179258]
[1733383714551,0.06010714,234.89,234.87,8.38179258]
[1733383715667,0.06010714,234.89,234.88,8.38179258]
[1733383716673,0.06010714,234.89,234.88,32.15867658]
[1733383717056,0.06010714,234.89,234.88,38.05293752]
[1733383718670,0.06010714,234.89,234.88,32.15867658]
[1733383720574,0.06010714,234.89,234.88,37.73019086]
[1733383720969,0.06010714,234.89,234.88,5.57151428]
[1733383721176,0.06010714,234.89,234.88,8.38179258]
[1733383721473,1.06127842,235.06,234.88,8.38179258]
[1733383721677,2.38785614,235.03,234.88,8.38179258]
[1733383721973,1.06127506,235.0,234.89,8.38179258]
[1733383722271,0.07907479,234.93,234.89,8.38179258]
[1733383724854,0.07907479,234.93,234.9,8.38179258]
[1733383725068,0.07907479,234.93,234.85,20.0]
[1733383725381,0.07907479,234.93,234.92,32.15867658]
[1733383726550,0.07907479,234.93,234.92,37.73019086]
[1733383726771,0.07907479,234.93,234.92,32.15867658]
[1733383726967,0.07907479,234.93,234.92,23.776884]
[1733383727671,0.07907479,234.93,234.91,8.38179258]
[1733383728960,0.07907479,234.93,234.92,8.38179258]
[1733383729185,0.07907479,234.93,234.92,32.15867658]
[1733383729848,0.07907479,234.93,234.92,37.73019086]
[1733383732655,0.07907479,234.93,234.92,44.06482782]
[1733383732867,0.07964694,234.94,234.92,44.06482782]
[1733383733057,0.09158488,234.95,234.93,88.23339814]
[1733383733263,0.09158488,234.95,234.94,65.6858469]
[1733383733463,0.09158488,234.95,234.94,44.06482782]
[1733383735374,0.09158488,234.95,234.94,77.71748814]
[1733383735559,0.09158488,234.95,234.94,85.93668814]
[1733383735759,0.09158488,234.95,234.94,46.07488086]
[1733383736285,0.09158488,234.95,234.94,45.94939086]
[1733383736471,0.09158488,234.95,234.94,37.56759828]
[1733383736777,0.09158488,234.95,234.94,45.94939086]
[1733383738155,0.09158488,234.95,234.94,79.60205118]
[1733383738356,0.09158488,234.95,234.94,37.56759828]
[1733383738777,0.09158488,234.95,234.94,45.94939086]
[1733383739570,0.09158488,234.95,234.94,37.56759828]
[1733383739872,0.09158488,234.95,234.94,45.94939086]
[1733383740855,0.09158488,234.95,234.94,85.93668814]
[1733383741473,1.4057,235.14,234.99,23.776884]
[1733383741673,1.4057,235.14,235.04,23.776884]
[1733383743555,1.4057,235.14,235.05,8.38179258]
[1733383743765,1.4057,235.14,235.08,23.776884]
[1733383745080,1.4057,235.14,235.07,23.776884]
[1733383747361,1.4057,235.14,235.07,32.15867658]
[1733383748268,1.4057,235.14,235.07,23.776884]
[1733383750894,1.0605136,235.13,234.96,8.38179258]
[1733383751262,1.0605136,235.13,234.95,8.38179258]
[1733383751681,6.4334,235.12,234.95,8.38179258]
[1733383751889,1.060915,235.11,234.95,8.38179258]
[1733383752390,1.060915,235.11,234.94,32.15867658]
[1733383752579,1.060915,235.11,234.94,23.776884]
[1733383753691,1.060915,235.11,234.94,29.27133717]
[1733383753994,1.060915,235.11,234.95,8.38179258]
[1733383754293,1.060915,235.11,234.94,29.27133717]
[1733383754294,1.060915,235.11,234.94,5.49445317]
[1733383754489,1.060915,235.11,234.94,13.87624575]
[1733383755769,1.060915,235.11,234.95,23.776884]
[1733383757689,1.4057,235.1,234.95,23.776884]
[1733383757896,1.06104804,235.09,234.95,23.776884]
[1733383758095,6.0078,235.08,234.93,4.75052034]
[1733383758397,2.46697022,235.07,234.9,8.38179258]
[1733383758571,2.46697022,235.07,234.92,8.38179258]
[1733383759292,2.46697022,235.07,234.94,8.38179258]
[1733383759485,2.46697022,235.07,234.95,32.15867658]
[1733383761599,2.46697022,235.07,234.95,23.776884]
[1733383762091,0.09219462,234.96,234.94,23.776884]
[1733383762320,0.09219462,234.96,234.93,23.776884]
[1733383762794,0.09219462,234.96,234.92,23.776884]
[1733383762996,0.09219462,234.96,234.91,8.38179258]
[1733383763785,0.09219462,234.96,234.86,5.49445317]
[1733383763987,0.09219462,234.96,234.83,1.5248]
[1733383764499,0.09219462,234.96,234.85,8.38179258]
[1733383765401,0.09219462,234.96,234.86,8.38179258]
[1733383766272,0.09219462,234.96,234.81,23.776884]
[1733383766473,0.09219462,234.96,234.85,8.38179258]
[1733383767085,0.09219462,234.96,234.86,8.38179258]
[1733383767474,0.09219462,234.96,234.81,23.776884]
[1733383767677,0.09219462,234.96,234.85,8.38179258]
[1733383768297,0.09219462,234.96,234.8,20.0]
[1733383768496,0.09219462,234.96,234.82,8.38179258]
[1733383769375,0.09219462,234.96,234.83,8.38179258]
[1733383769581,0.09219462,234.96,234.85,8.38179258]
[1733383771000,0.09219462,234.96,234.84,8.38179258]
[1733383771190,0.09219462,234.96,234.83,8.38179258]
[1733383771601,0.09219462,234.96,234.84,8.38179258]
[1733383772579,0.09219462,234.96,234.85,8.38179258]
[1733383773096,0.09219462,234.96,234.84,8.38179258]
[1733383773605,0.09219462,234.96,234.85,8.38179258]
[1733383773804,0.09219462,234.96,234.78,23.776884]
[1733383774106,0.09219462,234.96,234.83,8.38179258]
[1733383774682,0.09219462,234.96,234.81,8.38179258]
[1733383775704,0.09219462,234.96,234.83,8.38179258]
[1733383777498,0.09219462,234.96,234.84,8.38179258]
[1733383778006,0.09219462,234.96,234.83,8.38179258]
[1733383778511,0.09219462,234.96,234.85,8.38179258]
[1733383780282,0.09219462,234.96,234.81,20.0]
[1733383780497,0.09219462,234.96,234.84,8.38179258]
[1733383781105,0.09219462,234.96,234.85,8.38179258]
[1733383781410,1.061395,234.97,234.86,8.38179258]
[1733383782116,0.08938064,234.87,234.85,8.38179258]
[1733383782606,0.08938064,234.87,234.81,20.0]
[1733383782806,0.08938064,234.87,234.83,8.38179258]
[1733383784084,0.08938064,234.87,234.82,8.38179258]
[1733383784288,0.08938064,234.87,234.81,8.38179258]
[1733383786012,0.08938064,234.87,234.77,20.0]
[1733383786207,0.08938064,234.87,234.8,8.38179258]
[1733383786421,0.08938064,234.87,234.81,8.38179258]
[1733383788403,0.08938064,234.87,234.8,8.38179258]
[1733383789104,0.08938064,234.87,234.79,8.38179258]
[1733383790121,0.08938064,234.87,234.74,10.65]
[1733383790297,1.06186239,234.86,234.76,8.38179258]
[1733383791323,1.15130139,234.87,234.76,8.38179258]
[1733383791831,1.15130139,234.87,234.77,8.38179258]
[1733383792121,1.15130139,234.87,234.78,8.38179258]
[1733383792896,1.15130139,234.87,234.79,8.38179258]
[1733383793104,0.08938064,234.87,234.82,8.38179258]
[1733383794395,0.08938064,234.87,234.86,8.38179258]
[1733383796524,0.08938064,234.87,234.85,8.38179258]
[1733383798613,0.08938064,234.87,234.86,8.38179258]
[1733383799304,0.04851379,234.94,234.86,8.38179258]
[1733383801430,1.4057,234.95,234.89,8.38179258]
[1733383801603,1.4057,235.02,234.9,8.38179258]
[1733383802022,1.06128175,235.04,234.93,8.38179258]
[1733383802224,1.06128175,235.04,234.9,1.6655]
[1733383802225,0.08073863,234.91,234.9,25.442384]
[1733383802430,3.863e-05,234.91,234.9,30.79932605]
[1733383802632,3.863e-05,234.91,234.9,37.43192605]
[1733383803136,2.775e-05,234.92,234.91,39.77612605]
[1733383803439,7.818e-05,234.93,234.91,53.43882993]
[1733383803609,7.818e-05,234.93,234.92,8.38179258]
[1733383803934,7.818e-05,234.93,234.89,8.38179258]
[1733383804313,7.818e-05,234.93,234.87,20.0]
[1733383804509,7.818e-05,234.93,234.88,8.38179258]
[1733383804928,7.818e-05,234.93,234.89,8.38179258]
[1733383805132,7.818e-05,234.93,234.9,8.38179258]
[1733383805940,7.818e-05,234.93,234.91,8.38179258]
[1733383806820,7.818e-05,234.93,234.92,23.776884]
[1733383807016,7.818e-05,234.93,234.92,8.38179258]
[1733383807221,7.818e-05,234.93,234.89,20.0]
[1733383807427,7.818e-05,234.93,234.92,8.38179258]
[1733383808741,7.818e-05,234.93,234.92,32.15867658]
[1733383809418,7.818e-05,234.93,234.92,37.51561863]
[1733383809619,7.818e-05,234.93,234.92,32.15867658]
[1733383809835,3.52677494,235.09,234.93,23.776884]
[1733383810545,1.0610309,235.08,234.93,32.15867658]
[1733383810732,1.0610309,235.08,234.93,8.38179258]
[1733383810915,1.0610309,235.08,234.94,8.38179258]
[1733383812241,1.0610309,235.08,234.95,23.776884]
[1733383812736,3.52677494,235.09,235.0,23.776884]
[1733383813041,3.52677494,235.09,235.0,8.38179258]
[1733383813238,3.52677494,235.09,235.01,23.776884]
[1733383813438,5.5925,235.14,235.03,23.776884]
[1733383813629,1.060719,235.13,235.03,32.15867658]
[1733383814138,1.060719,235.13,235.04,8.38179258]
[1733383814742,5.5925,235.14,235.06,23.776884]
[1733383814917,5.5925,235.14,235.06,32.15867658]
[1733383815118,5.5925,235.19,235.06,32.15867658]
[1733383815427,1.06057735,235.18,235.08,23.776884]
[1733383815631,5.5925,235.19,235.08,23.776884]
[1733383815822,1.06046351,235.18,235.08,23.776884]
[1733383816241,5.5925,235.19,235.08,23.776884]
[1733383816442,1.06046303,235.18,235.08,23.776884]
[1733383816738,1.06046303,235.18,235.03,1.6375]
[1733383816916,1.06046303,235.18,235.0,13.73873463]
[1733383817123,1.06046303,235.18,234.99,8.38179258]
[1733383817547,1.06046303,235.18,234.97,1.5733]
[1733383817751,1.06046303,235.18,234.95,8.38179258]
[1733383817752,23.776884,235.17,234.95,8.38179258]
[1733383817943,5.5925,235.14,234.92,1.5733]
[1733383818241,1.06112564,235.13,234.93,8.38179258]
[1733383818819,23.776884,235.12,234.93,8.38179258]
[1733383819019,1.06114855,235.11,234.93,8.38179258]
[1733383819443,1.06114855,235.11,234.94,8.38179258]
[1733383820020,1.06114286,235.1,234.93,13.04242743]
[1733383820221,1.06114286,235.1,234.92,13.04242743]
[1733383820543,23.776884,235.07,234.89,13.04242743]
[1733383820841,14.1672436,235.06,234.88,13.04242743]
[1733383821066,13.95544153,235.05,234.88,13.04242743]
[1733383821218,13.95544153,235.05,234.86,1.6558]
[1733383821219,1.06144536,235.04,234.87,13.04242743]
[1733383821844,1.06144536,235.04,234.88,13.04242743]
[1733383822231,0.09330025,234.89,234.86,1.6558]
[1733383822549,0.09330025,234.89,234.87,23.776884]
[1733383825044,0.09330025,234.89,234.88,36.81931143]
[1733383833651,0.09330025,234.89,234.88,42.38569793]
[1733383838554,0.09330025,234.89,234.83,13.04242743]
[1733383839060,0.09330025,234.89,234.84,13.04242743]
[1733383841330,1.06160766,234.95,234.84,13.04242743]
[1733383841639,23.776884,234.89,234.58,13.04242743]
[1733383841943,5.5925,234.84,234.53,9.98818027]
[1733383842140,24.8396838,234.83,234.43,1.0]
[1733383842338,23.776884,234.81,234.5,8.37618027]
[1733383842544,23.776884,234.79,234.5,8.37618027]
[1733383842743,23.776884,234.77,234.5,8.37618027]
[1733383842940,23.776884,234.75,234.43,10.6637]
[1733383843157,23.776884,234.73,234.43,10.6637]
[1733383843359,23.776884,234.71,234.49,8.37618027]
[1733383843532,1.06312584,234.7,234.49,8.37618027]
[1733383843862,23.776884,234.73,234.41,1.612]
[1733383844160,23.776884,234.71,234.43,13.09899384]
[1733383844463,23.776884,234.71,234.41,1.612]
[1733383844464,23.776884,234.69,234.47,13.09899384]
[1733383844762,1.0632193,234.68,234.47,13.09899384]
[1733383845138,1.0632193,234.68,234.51,13.09899384]
[1733383845668,23.776884,234.72,234.52,23.776884]
[1733383845966,23.776884,234.7,234.52,23.776884]
[1733383846139,1.06307109,234.69,234.52,23.776884]
[1733383846863,1.06307109,234.69,234.55,13.09899384]
[1733383847041,1.06307109,234.69,234.56,23.776884]
[1733383847555,1.06307109,234.69,234.56,36.87587784]
[1733383848364,1.06307109,234.69,234.57,13.09899384]
[1733383848742,1.06307109,234.69,234.58,23.776884]
[1733383849441,1.06275319,234.7,234.58,23.776884]
[1733383850365,1.06275319,234.7,234.57,23.776884]
[1733383851368,1.06275319,234.7,234.56,23.776884]
[1733383852395,13.38333222,234.71,234.56,23.776884]
[1733383852396,13.38333222,234.71,234.6,13.09899384]
[1733383852670,5.5925,234.74,234.64,23.776884]
[1733383852868,5.5925,234.83,234.64,23.776884]
[1733383853163,1.06246286,234.82,234.64,23.776884]
[1733383854560,12.97859332,234.81,234.61,23.776884]
[1733383854766,1.06264839,234.8,234.61,23.776884]
[1733383854964,6.56346184,234.8,234.64,13.09899384]
[1733383855166,1.06264839,234.8,234.64,13.09899384]
[1733383855473,5.71947295,234.8,234.63,13.09899384]
[1733383855758,1.06264839,234.8,234.64,23.776884]
[1733383855965,4.65682456,234.79,234.64,23.776884]
[1733383856262,1.06248767,234.78,234.64,23.776884]
[1733383856464,5.71931223,234.78,234.64,23.776884]
[1733383856652,5.71931223,234.78,234.64,36.87587784]
[1733383856961,4.65682456,234.77,234.64,36.87587784]
[1733383857159,1.06248813,234.76,234.66,23.776884]
[1733383857356,1.06246153,234.76,234.66,23.776884]
[1733383857560,1.06240093,234.8,234.66,23.776884]
[1733383858358,1.06240093,234.8,234.66,36.87587784]
[1733383858863,1.06240093,234.8,234.68,23.776884]
[1733383859064,1.06240093,234.8,234.68,36.87587784]
[1733383859442,1.06240093,234.8,234.69,13.09899384]
[1733383859669,1.06240093,234.8,234.7,23.776884]
[1733383859844,1.06240093,234.8,234.68,36.87587784]
[1733383860372,14.04082811,234.81,234.7,36.87587784]
[1733383860565,14.04082811,234.81,234.68,23.776884]
[1733383860566,14.04082811,234.81,234.71,13.09899384]
[1733383860764,12.97859332,234.81,234.72,23.776884]
[1733383861270,1.06215459,234.8,234.69,23.776884]
[1733383861673,5.8302832,234.8,234.69,23.776884]
[1733383862268,0.08736223,234.7,234.69,36.87587784]
[1733383863153,0.08736223,234.7,234.69,23.776884]
[1733383863368,0.08736223,234.7,234.67,23.776884]
[1733383863569,0.08736223,234.7,234.64,13.09899384]
[1733383865269,0.08736223,234.7,234.65,23.776884]
[1733383866556,5.18035548,234.83,234.67,23.776884]
[1733383866760,5.18035548,234.83,234.67,36.87587784]
[1733383867060,0.85161776,234.82,234.7,13.09899384]
[1733383867252,0.85161776,234.82,234.71,23.776884]
[1733383868153,0.85161776,234.82,234.69,23.776884]
[1733383868352,0.85161776,234.82,234.69,36.87587784]
[1733383869263,0.85161776,234.82,234.71,13.09899384]
[1733383869453,0.85161776,234.82,234.72,23.776884]
[1733383869651,5.18035548,234.83,234.72,23.776884]
[1733383870068,5.18035548,234.83,234.74,36.87587784]
[1733383871278,5.1804,234.89,234.76,13.09899384]
[1733383871458,5.1804,234.89,234.81,23.776884]
[1733383872162,13.20316363,234.91,234.83,23.776884]
[1733383872864,0.85161776,234.94,234.83,36.87587784]
[1733383873180,5.1804,234.95,234.84,13.09899384]
[1733383873485,5.1804,234.95,234.85,23.776884]
[1733383874898,5.1804,234.95,234.84,23.776884]
[1733383875768,5.1804,234.95,234.83,23.776884]
[1733383876473,5.1804,234.95,234.81,13.09899384]
[1733383876474,5.25660456,234.94,234.79,13.09899384]
[1733383877381,5.25660456,234.94,234.8,13.09899384]
[1733383877676,0.85161776,234.94,234.82,23.776884]
[1733383877885,5.25660456,234.94,234.82,23.776884]
[1733383878055,5.1804,234.95,234.87,23.776884]
[1733383878384,5.1804,235.03,234.87,23.776884]
[1733383878556,0.85161776,235.02,234.86,36.87587784]
[1733383878964,5.25660456,235.02,234.88,23.776884]
[1733383879163,0.85161776,235.02,234.88,36.87587784]
[1733383879955,0.85161776,235.02,234.89,13.09899384]
[1733383880189,0.85161776,235.02,234.9,23.776884]
[1733383880381,4.4049868,235.01,234.9,23.776884]
[1733383880562,0.85161776,235.0,234.9,23.776884]
[1733383880758,5.25660456,235.0,234.89,36.87587784]
[1733383882170,0.08206691,234.9,234.89,23.776884]
[1733383882373,0.08206691,234.9,234.89,36.87587784]
[1733383882869,0.08206691,234.9,234.89,23.776884]
[1733383883382,0.08206691,234.9,234.89,13.09899384]
[1733383883563,0.08206691,234.9,234.89,37.72490403]
[1733383891806,6.691e-05,234.9,234.89,37.72490403]
[1733383899306,6.691e-05,234.9,234.89,0.84902619]
[1733383899601,6.691e-05,234.9,234.86,13.09899384]
[1733383899784,6.691e-05,234.9,234.85,13.09899384]
[1733383899979,6.691e-05,234.9,234.86,0.84923258]
[1733383900191,6.691e-05,234.9,234.86,13.94822642]
[1733383900596,6.691e-05,234.9,234.88,13.09899384]
[1733383900787,6.691e-05,234.9,234.87,13.09899384]
[1733383901407,5.1804,234.98,234.86,13.09899384]
[1733383901708,5.1804,234.98,234.87,23.776884]
[1733383901893,0.85161776,234.97,234.87,23.776884]
[1733383902208,0.07873645,234.88,234.83,13.09899384]
[1733383902414,0.07873645,234.88,234.84,0.84929653]
[1733383903409,0.07873645,234.88,234.87,13.09899384]
[1733383904183,0.07873645,234.88,234.87,36.87587784]
[1733383904814,0.07873645,234.88,234.87,37.72488067]
[1733383906510,0.07873645,234.88,234.87,36.87587784]
[1733383907711,0.07873645,234.88,234.87,37.72494142]
[1733383911422,0.07873645,234.88,234.87,36.87587784]
[1733383911916,0.07873645,234.88,234.87,37.72493213]
[1733383913696,0.07873645,234.88,234.87,36.87587784]
[1733383914206,0.07873645,234.88,234.87,13.09899384]
[1733383914403,0.07873645,234.88,234.84,13.09899384]
[1733383914606,0.07873645,234.88,234.86,13.09899384]
[1733383914817,0.07873645,234.88,234.87,13.09899384]
[1733383916019,0.07873645,234.88,234.86,13.09899384]
[1733383916304,0.07873645,234.88,234.84,36.87587784]
[1733383916523,0.07873645,234.88,234.84,13.09899384]
[1733383917812,0.07873645,234.88,234.82,13.09899384]
[1733383918013,0.07873645,234.88,234.83,13.94838454]
[1733383918317,0.07873645,234.88,234.87,13.09899384]
[1733383920237,0.07873645,234.88,234.87,36.87587784]
[1733383920417,0.07873645,234.88,234.87,37.72488562]
[1733383921334,16.40890988,235.3,234.87,13.94800162]
[1733383921536,13.16890988,235.29,234.91,13.09899384]
[1733383921734,13.16890988,235.29,234.9,13.09899384]
[1733383922035,3.68371052,235.02,234.86,13.09899384]
[1733383922219,0.07917011,234.92,234.86,13.09899384]
[1733383922425,0.07917011,234.92,234.85,13.09899384]
[1733383922618,3.95914864,234.91,234.83,13.9482706]
[1733383924732,3.95914864,234.91,234.84,13.09899384]
[1733383924934,3.95914864,234.91,234.84,13.94826328]
[1733383925310,3.95914864,234.91,234.85,13.09899384]
[1733383925508,0.0771519,234.93,234.9,13.09899384]
[1733383925835,0.0771519,234.93,234.92,33.09899384]
[1733383926207,0.0771519,234.93,234.91,13.94798882]
[1733383926415,0.0771519,234.93,234.92,20.0]
[1733383926632,0.0771519,234.93,234.89,13.94798726]
[1733383926844,0.0771519,234.93,234.92,20.0]
[1733383927044,0.0771519,234.93,234.88,20.0]
[1733383927221,1.69369583,234.93,234.82,13.09899384]
[1733383927456,4.11231831,234.92,234.82,13.09899384]
[1733383927629,3.26070055,234.92,234.84,13.09899384]
[1733383927835,3.26070055,234.92,234.85,13.09899384]
[1733383928153,3.26070055,234.92,234.83,0.84933185]
[1733383928310,3.26070055,234.92,234.83,13.94832569]
[1733383928746,3.26070055,234.92,234.86,20.0]
[1733383929237,3.26070055,234.92,234.87,20.0]
[1733383931029,3.26070055,234.92,234.82,33.09899384]
[1733383931256,3.26070055,234.92,234.85,20.0]
[1733383932735,3.26070055,234.92,234.83,13.09899384]
[1733383932938,3.26070055,234.92,234.84,0.84927124]
[1733383933136,0.0771519,234.93,234.85,13.09899384]
[1733383933442,0.0771519,234.93,234.87,13.09899384]
[1733383933735,0.0771519,234.93,234.88,0.84915176]
[1733383934538,0.0771519,234.93,234.87,0.84915566]
[1733383935247,0.0771519,234.93,234.88,20.0]
[1733383935544,4.53765798,234.92,234.84,13.09899384]
[1733383935740,4.53765798,234.92,234.85,0.84921941]
[1733383937142,4.53765798,234.92,234.85,13.94821325]
[1733383938240,0.0771519,234.93,234.86,36.87587784]